Cogmind - Beta 15 --- EXPLORER MODE // 2025.07.28 @ 21:12:31 Player: rootmos Result: Destroyed by 8R-AWN with 8R-AWN's Boregun Performance ------------- Evolutions (1) 500 Regions Visited (5) 1000 Robots Destroyed (71) 355 Value Destroyed (1899) 1899 Prototype IDs (2) 40 Alien Tech Used (0) 0 Bonus (39) 39 TOTAL SCORE: 3833 Bonus ------- Follower Combat Kills 39 Cogmind --------- Core Integrity 0/400 Matter 217/300 Energy 99/100 System Corruption 3% Temperature Cool (0) Movement Treading (320) Ox2 Location -9/Exiles Parts ------- > --- POWER (1) -------- (None) > --- PROPULSION (3) --- Light Treads > --- UTILITY (4) ------ Heat Sink High-capacity Storage Unit Sensor Array Targeting Computer > --- WEAPON (2) ------- Light Assault Rifle Heavy Assault Rifle > --- INVENTORY (20) --- Improved Ion Engine Improved Ion Engine Improved Ion Engine Aluminum Leg Medium Storage Unit Large Storage Unit Large Battery (200) Core Shielding Beam Rifle Particle Cannon Light Cannon Rocket Launcher Datajack Mining Laser Peak State ------------ > --- POWER ------------ Heavy Ion Engine > --- PROPULSION ------- Light Treads Light Treads Improved Treads > --- UTILITY ---------- Huge Storage Unit Weight Redist. System Targeting Computer Targeting Computer > --- WEAPON ----------- Improved EM Shotgun Flak Cannon > --- INVENTORY -------- Ion Engine Light Ion Engine Improved Ion Engine Improved Ion Engine Light Treads Light Treads Light Treads Improved Treads Aluminum Leg Heat Sink Medium Storage Unit Large Storage Unit Large Battery Sensor Array Targeting Computer Core Shielding Beam Rifle Particle Cannon Light Assault Rifle Heavy Assault Rifle Light Cannon Improved Light Cannon Rocket Launcher Datajack Mining Laser [Rating: 21] Favorites ----------- Power Heavy Ion Engine Engine Heavy Ion Engine Propulsion Light Treads Treads Light Treads Leg Aluminum Leg Utility Targeting Computer Device Weight Redist. System Storage Huge Storage Unit Processor Targeting Computer Protection Core Shielding Weapon Light Cannon Energy Gun Improved EM Shotgun Ballistic Gun Assault Rifle Ballistic Cannon Light Cannon Special Weapon Mining Laser Build | -11 -10 -10 -9 -9 -9 ------- Run | Yrd Mat Min Mat Min Exi Slots Evolved 3 | . 1 . 2 . . Power . | . . . . . . Propulsion 1 | . . . 1 . . Utility 2 | . 1 . 1 . . Weapon . | . . . . . . Parts Attached 41 | 8 6 3 16 3 5 Power 6 | 1 . 2 3 . . Engine 6 | 1 . 2 3 . . Core . | . . . . . . Reactor . | . . . . . . Propulsion 9 | 2 . . 7 . . Treads 8 | 2 . . 6 . . Leg 1 | . . . 1 . . Wheel . | . . . . . . Hover . | . . . . . . Flight . | . . . . . . Utility 13 | 3 4 . 2 2 2 Device 5 | 2 . . 1 1 1 Storage 4 | . 3 . . . 1 Processor 3 | . 1 . 1 1 . Hackware . | . . . . . . Protection 1 | 1 . . . . . Artifact . | . . . . . . Weapon 13 | 2 2 1 4 1 3 Energy Gun 2 | . . . 2 . . Energy Cannon . | . . . . . . Ballistic Gun 6 | 2 1 . . . 3 Ballistic Cannon 4 | . 1 1 1 1 . Launcher . | . . . . . . Special Weapon 1 | . . . 1 . . Impact Weapon . | . . . . . . Slashing Weapon . | . . . . . . Piercing Weapon . | . . . . . . Special Melee Weapon . | . . . . . . Unidentified Prototypes 2 | . . . 2 . . Parts Lost 12 | . . . . 3 9 Power 1 | . . . . . 1 Propulsion 4 | . . . . . 4 Utility 3 | . . . . 2 1 Weapon 4 | . . . . 1 3 Highest Loss Streak 9 | . . . . 2 9 To Critical Strikes 2 | . . . . . 2 Average Backups 18 | 1 10 14 19 22 20 Power 2 | . 1 1 3 3 3 Propulsion 2 | . . 2 3 4 3 Utility 5 | . 3 6 6 5 4 Weapon 6 | . 4 4 6 8 7 Tool/Special . | . . . . . . Unused Backups 18 | . 1 1 6 1 9 Power 7 | . . 1 3 1 2 Propulsion 1 | . . . 1 . . Utility 3 | . 1 . . . 2 Weapon 6 | . . . 2 . 4 Tool/Special 1 | . . . . . 1 Average Slot Usage (%) 99 | . 98 100 99 98 97 Engine 10 | . 12 12 10 10 9 Treads 28 | . 25 25 29 30 28 Device 8 | . 2 . 8 16 20 Storage 14 | . 19 25 11 10 10 Processor 14 | . 9 12 19 12 10 Energy Gun 5 | . . . 10 3 . Ballistic Gun 2 | . 12 3 . . 1 Ballistic Cannon 13 | . 11 21 9 15 18 Peak Build Rating 21 | 7 9 9 21 21 20 Average Rating 15 | 5 8 8 18 19 18 On Entrance 11 | . 7 9 9 21 20 Naked Turns . | . . . . . . Heaviest Build 108 | 9 108 39 97 99 99 Greatest Support 72 | 40 40 40 72 69 69 Greatest Overweight (x) 2 | . 2 . 1 1 2 Average Overweight (x) . | . . . . 1 . Largest Inventory Capacity 25 | 5 25 15 25 25 25 Average Capacity 20 | 5 14 15 23 25 23 Most Carried 25 | 2 15 15 25 25 21 Average Carried 18 | 1 10 14 19 22 20 Final Capacity 25 | 5 15 15 25 25 20 Final Carried 25 | 2 15 15 25 21 14 Class Distribution -------------------- 100% | Hacker-Mutant Dominant Class ---------------- Hacker-Mutant | -10/Materials Hacker-Mutant | -10/Mines Hacker-Mutant | -9/Materials Hacker-Mutant | -9/Mines Hacker-Mutant | -9/Exiles Resources | -11 -10 -10 -9 -9 -9 ----------- Run | Yrd Mat Min Mat Min Exi Matter Collected 1627 | 136 301 221 504 431 34 Remotely . | . . . . . . Salvage Created 2243 | . 180 165 1503 343 52 Parts 140 | . 16 9 91 19 5 Haulers Intercepted 2 | . . . 2 . . Recyclers Shooed . | . . . . . . Parts Field Recycled . | . . . . . . Retrieved Matter . | . . . . . . Parts Self-Destructed . | . . . . . . Prevented . | . . . . . . Kills | -11 -10 -10 -9 -9 -9 ------- Run | Yrd Mat Min Mat Min Exi Combat Hostiles Destroyed 74 | . 8 8 32 23 3 Guns 21 | . 1 1 14 4 1 Cannons 51 | . 7 7 17 18 2 AOE 2 | . . . 1 1 . Classes Destroyed 11 | . 2 . 8 1 . Worker 3 | . . . 1 2 . Builder 1 | . . . 1 . . Hauler 2 | . . . 2 . . Recycler 2 | . . . 2 . . Mechanic 1 | . . . 1 . . Watcher 3 | . . . 3 . . Swarmer 19 | . 4 2 8 5 . Grunt 28 | . 4 6 13 5 . Duelist 2 | . . . 1 1 . Sentry 10 | . . . 10 . . Assembled 15 | . . . . 12 3 Best Kill Streak 7 | . 2 2 7 6 3 Combat Bots Only 6 | . 2 2 3 6 3 Max Kills in Single Turn 2 | . 1 1 2 2 1 Gunslinging . | . . . . . . Exploded 1 | . . . 1 1 . Melee . | . . . . . . Uniques/NPCs Destroyed . | . . . . . . Combat | -11 -10 -10 -9 -9 -9 -------- Run | Yrd Mat Min Mat Min Exi Hostile Shots Fired 299 | . 19 37 103 45 95 Missed 90 | . 8 11 40 10 21 Hits 209 | . 11 26 63 35 74 Melee 16 | . . . . 5 11 Projectile 193 | . 11 26 63 30 63 Critical Strikes 14 | . . 1 3 . 10 Part Disruptions 3 | . 1 . . . 2 Damage Taken 2489 | . 105 221 456 664 1043 Core 424 | . 10 14 46 121 233 Absorbed by Shields . | . . . . . . Ignored by Resistances 1331 | . 71 135 304 206 615 Core Remaining (%) 95 | 100 . 90 . . . Volleys Fired 152 | . 12 26 68 36 10 Largest 2 | . 2 2 2 2 2 Hottest 108 | . 50 60 108 82 70 Shots Fired 282 | . 24 50 119 69 20 Gun 99 | . 12 19 53 7 8 Cannon 182 | . 12 31 65 62 12 Launcher . | . . . . . . Special 1 | . . . 1 . . Kinetic 221 | . 24 50 65 62 20 Thermal 10 | . . . 10 . . Explosive . | . . . . . . Electromagnetic 51 | . . . 44 7 . Robot Hit Streak 43 | . 7 30 31 43 11 Robot Miss Streak 2 | . 1 1 2 2 2 Penetration Max . | . . . . . . Secondary Targets . | . . . . . . Shots Hit Robots 217 | . 15 38 96 50 18 Core Hits 155 | . 8 12 73 52 10 Critical Kills . | . . . . . . Critical Parts Destroyed . | . . . . . . Critical Strikes 7 | . 1 1 4 . 1 Blast 7 | . 1 1 4 . 1 Melee Attacks . | . . . . . . Impact . | . . . . . . Slashing . | . . . . . . Piercing . | . . . . . . Sneak Attacks . | . . . . . . Combat Hostiles . | . . . . . . Follow-up Attacks . | . . . . . . Damage Inflicted 4419 | . 235 628 1965 1261 330 Guns 1325 | . 42 169 892 129 93 Cannons 2680 | . 191 441 886 925 237 Explosions 321 | . . . 144 177 . Melee . | . . . . . . Ramming 93 | . 2 18 43 30 . Kinetic 2984 | . 233 610 886 925 330 Thermal 423 | . . . 246 177 . Explosive . | . . . . . . Electromagnetic 919 | . . . 790 129 . Impact . | . . . . . . Slashing . | . . . . . . Piercing . | . . . . . . Highest Corruption 3 | . 1 1 1 3 3 Average Corruption 1 | . 1 1 1 2 3 Corruption Purged . | . . . . . . Corruption Blocked . | . . . . . . Effects 64 | . 8 8 13 28 7 Message Errors 20 | . 5 2 6 6 1 Matter Fused 14 | . 2 2 2 6 2 Heat Flow Errors 5 | . . . 2 2 1 Energy Discharges 8 | . . 1 1 4 2 Parts Rejected 1 | . . 1 . . . Data Loss (minor) 8 | . 1 1 1 5 . Data Loss (major) 1 | . . . . 1 . Misfires 3 | . . . . 2 1 Alerts 3 | . . . 1 2 . Weapon Failures 1 | . . 1 . . . Overload Shots . | . . . . . . Overflow Damage 53 | . 17 1 . 35 . Projectiles 30 | . 17 1 . 12 . Explosions 14 | . . . . 14 . Melee 9 | . . . . 9 . Knockbacks 48 | . 5 10 4 19 10 Impact 1 | . . 1 . . . Kinetic 46 | . 4 9 4 19 10 Secondary 1 | . 1 . . . . Self-Inflicted Damage 15 | . . . 7 8 . Shots 2 | . . . 1 1 . Rammed 12 | . 3 3 3 3 . Targets Rammed 13 | . 3 3 4 3 . Kicked . | . . . . . . Crushed 1 | . . . 1 . . Highest Temperature 264 | . 2 46 264 87 200 Average Temperature 33 | . 2 25 39 20 62 Received Heat Transfer 694 | . 6 207 276 65 140 Siege Activations . | . . . . . . Martial Activations . | . . . . . . Shielding Activations . | . . . . . . Robots Disrupted . | . . . . . . Combat Hostiles . | . . . . . . Robots Corrupted 1 | . . . . 1 . Combat Hostiles . | . . . . . . Parts Fried 2 | . . . . 2 . Impact Corruptions 1 | . . . . 1 . Robots Melted . | . . . . . . Combat Hostiles . | . . . . . . Parts Melted 1 | . . . 1 . . Heat Transferred 722 | . . . 472 250 . Parts Sabotaged . | . . . . . . Parts Stolen . | . . . . . . Parts Stripped . | . . . . . . Power Chain Reactions 5 | . . . 3 2 . Alert | -11 -10 -10 -9 -9 -9 ------- Run | Yrd Mat Min Mat Min Exi Maximum Alert Level . | . . . . . . Low Security (%) 100 | 100 100 100 100 100 . Level 1 . | . . . . . . Level 2 . | . . . . . . Level 3 . | . . . . . . Level 4 . | . . . . . . Level 5 . | . . . . . . High Security . | . . . . . . Max Security . | . . . . . . Peak Influence 93 | . 93 45 90 88 . Initial . | . . . . . . Average 10 | . 9 5 15 5 . Influence Increases 1753 | . 223 219 980 331 . Destroy 0b10 Robot/C 1200 | . 160 160 640 240 . Destroy 0b10 Robot/NC 60 | . . . 50 10 . Destroy Leader 340 | . 40 40 200 60 . Allied During Kill 4 | . . . . 4 . Successful Hack 33 | . 23 . 10 . . Disable Machine 20 | . . 4 4 12 . Destroy Structure 21 | . . . 16 5 . Lose Combat Pursuer 75 | . . 15 60 . . Influence Decreases 1753 | . 223 219 980 331 . Time Decay 1722 | . 223 219 980 300 . Lost Ally 31 | . . . . 31 . Squads Dispatched 7 | . 2 . 5 . . Investigation 3 | . 2 . 1 . . Extermination . | . . . . . . Reinforcement 4 | . . . 4 . . Assault . | . . . . . . Garrison . | . . . . . . Intercept . | . . . . . . Searches Triggered . | . . . . . . Construction Impeded 1 | . . . 1 . . Haulers Reinforced . | . . . . . . Active Scanning Responses . | . . . . . . Cargo Convoy Interrupts . | . . . . . . Stealth | -11 -10 -10 -9 -9 -9 --------- Run | Yrd Mat Min Mat Min Exi Distress Signals 8 | . 1 . 7 . . Communications Jammed . | . . . . . . Distress Signals . | . . . . . . Times Spotted 118 | . 23 9 52 25 9 Peak Tracking Total 11 | . 5 2 4 6 11 Tactical Retreats 7 | . . 1 4 . 2 Traps | -11 -10 -10 -9 -9 -9 ------- Run | Yrd Mat Min Mat Min Exi Traps Triggered 6 | . 2 . 4 . . Indirectly . | . . . . . . Trap Hack Attempts . | . . . . . . Triggered . | . . . . . . Disarmed 16 | . 10 . 6 . . Reprogrammed . | . . . . . . Reused . | . . . . . . Traps Extracted . | . . . . . . Installed . | . . . . . . Triggered . | . . . . . . Machines | -11 -10 -10 -9 -9 -9 ---------- Run | Yrd Mat Min Mat Min Exi Machines Disabled 5 | . . 1 1 3 . Max in Single Turn 2 | . . 1 1 2 . Machines Repaired . | . . . . . . Machines Dismantled . | . . . . . . Machines Sabotaged . | . . . . . . Overloaded Fab Kills . | . . . . . . Hacking | -11 -10 -10 -9 -9 -9 --------- Run | Yrd Mat Min Mat Min Exi Machines Accessed 13 | . 6 . 7 . . Terminals 10 | . 6 . 4 . . Fabricators . | . . . . . . Repair Stations . | . . . . . . Recycling Units 1 | . . . 1 . . Scanalyzers 2 | . . . 2 . . Garrison Access . | . . . . . . Total Hacks 37 | . 17 . 20 . . Successful 24 | . 10 . 14 . . Failed 13 | . 7 . 6 . . Catastrophic . | . . . . . . Database Lockouts . | . . . . . . Manual . | . . . . . . Terminals 27 | . 17 . 10 . . Fabricators . | . . . . . . Repair Stations . | . . . . . . Recycling Units 2 | . . . 2 . . Scanalyzers 8 | . . . 8 . . Garrison Access . | . . . . . . Terminal Hacks 14 | . 10 . 4 . . Record 1 | . . . 1 . . Robot Analysis 2 | . 1 . 1 . . Locate Traps 6 | . 5 . 1 . . Disarm Traps 4 | . 3 . 1 . . Patrol Status 1 | . 1 . . . . Fabricator Hacks . | . . . . . . Repair Station Hacks . | . . . . . . Recycling Unit Hacks 2 | . . . 2 . . Process 1 | . . . 1 . . Report Inventory 1 | . . . 1 . . Scanalyzer 8 | . . . 8 . . Insert Component 3 | . . . 3 . . Analyze 5 | . . . 5 . . Garrison Access Hacks . | . . . . . . Unauthorized Hacks . | . . . . . . Terminals . | . . . . . . Fabricators . | . . . . . . Repair Stations . | . . . . . . Recycling Units . | . . . . . . Scanalyzers . | . . . . . . Garrison Access . | . . . . . . Data Cores Recovered . | . . . . . . Used . | . . . . . . Hacking Detections 9 | . 5 . 4 . . Full Trace Events 6 | . 4 . 2 . . Feedback Events 1 | . 1 . . . . Corruption 1 | . 1 . . . . Feedback Blocked . | . . . . . . Robot Schematics Acquired . | . . . . . . Robots Built . | . . . . . . Authchips . | . . . . . . Time . | . . . . . . Total Robot Build Rating . | . . . . . . Part Schematics Acquired 3 | . . . 3 . . Parts Built . | . . . . . . Authchips . | . . . . . . Time . | . . . . . . Total Part Build Rating . | . . . . . . Parts Repaired . | . . . . . . Time . | . . . . . . Parts Recycled . | . . . . . . Recycled Matter 200 | . . . 200 . . Retrieved Matter . | . . . . . . Retrieved Components . | . . . . . . Parts Scanalyzed 3 | . . . 3 . . Part Schematics Acquired 3 | . . . 3 . . Parts Damaged . | . . . . . . Bothacking | -11 -10 -10 -9 -9 -9 ------------ Run | Yrd Mat Min Mat Min Exi Used RIF Installer . | . . . . . . Robots Hacked . | . . . . . . Non-combat . | . . . . . . Combat . | . . . . . . Robot Hacks Applied . | . . . . . . Relay Couplers Released . | . . . . . . Fabnet Peak Effective % . | . . . . . . Robots Rewired . | . . . . . . Allies Hacked . | . . . . . . Hacks Repelled . | . . . . . . Allies | -11 -10 -10 -9 -9 -9 -------- Run | Yrd Mat Min Mat Min Exi Total Allies 3 | . . . . 3 . Largest Group 3 | . . . . 3 . Highest-Rated Group 40 | . . . . 40 . Highest-Rated Ally 16 | . . . . 16 . Total Orders . | . . . . . . Ally Attacks 7 | . . . . 7 . Total Damage 75 | . . . . 75 . Kills 1 | . . . . 1 . Allies Corrupted . | . . . . . . Allies Melted . | . . . . . . Intel | -11 -10 -10 -9 -9 -9 ------- Run | Yrd Mat Min Mat Min Exi Active Infowar (turns) 1955 | 49 265 . . 1277 364 Sensors 1641 | . . . . 1277 364 Terrain 301 | 36 265 . . . . ECM 13 | 13 . . . . . Robot Analysis Total 2 | . 1 . 1 . . Derelict Logs Recovered 3 | . . 2 . 1 . Drone Launches . | . . . . . . Drone Recoveries . | . . . . . . Exploration | -11 -10 -10 -9 -9 -9 ------------- Run | Yrd Mat Min Mat Min Exi Turns Passed 7884 | 110 1280 967 3140 2023 364 Spaces Moved 3593 | 63 744 546 1303 790 147 Core 3 | 3 . . . . . Treads 3590 | 60 744 546 1303 790 147 Legs . | . . . . . . Wheels . | . . . . . . Hover . | . . . . . . Flight . | . . . . . . Fastest Speed 50 | 50 160 160 160 240 160 Average Speed 202 | 154 161 160 220 240 223 Slowest Speed 320 | 160 320 160 240 240 320 Overloaded Moves . | . . . . . . Propulsion Burnouts . | . . . . . . Robots Hopped . | . . . . . . Potential Cave-ins . | . . . . . . Cave-ins Triggered 1 | . . . . 1 . Exploration Rate (%) 71 | 4 98 93 98 97 37 Regions Visited 5 Branch Regions 3 Pre-discovered Areas 2 | . . 2 . . . Known Exits Taken 5 | 1 1 1 1 1 . Unknown Exits Taken . | . . . . . . Scrap Searched 5 | . . 1 . 4 . Spaces Dug 1 | . . . 1 . . Terrain Destroyed 18 | . . . 13 5 . Melee . | . . . . . . Projectile 1 | . . . 1 . . AOE 17 | . . . 12 5 . Terrain Rammed . | . . . . . . Walls Destroyed . | . . . . . . Machines Disabled . | . . . . . . Actions | -11 -10 -10 -9 -9 -9 --------- Run | Yrd Mat Min Mat Min Exi Total 3923 | 72 799 593 1447 847 165 Wait 54 | . 16 7 23 8 . Move 3588 | 62 743 545 1302 789 147 Hop . | . . . . . . Pick Up 37 | 2 15 4 15 1 . Fast Attach 10 | 7 1 . 2 . . Attach 15 | . . 1 4 4 6 Detach 3 | . . . 2 1 . Swap 29 | 1 6 2 16 3 1 Drop 21 | . 3 5 11 2 . Fire 152 | . 12 26 68 36 10 Melee . | . . . . . . Ram . | . . . . . . Kick . | . . . . . . Crush 13 | . 3 3 4 3 . Escape Stasis . | . . . . . . Rewire 1 | . . . . . 1 Trap . | . . . . . . Miscellaneous . | . . . . . . Route ------- -11/Scrapyard -10/Materials (discovered 5 exits: *Mat x3 / *Min x2) -10/Mines (discovered 2 exits: *Mat x2) -9/Materials (discovered 5 exits: *Mat x3 / *Min x2) -9/Mines (discovered 3 exits: *Mat x2 / *Exi) -9/Exiles History --------- Turn | Location | Event 6 | -11/Scrapyard | Identified exit to Materials 6 | -11/Scrapyard | Discovered exit to Materials (range 16) 111 | -11/Scrapyard | Entered Materials 111 | -10/Materials | Evolved 1 slot: Utility x1 111 | -10/Materials | Identified exit to Mines 111 | -10/Materials | Discovered exit to Mines (range 8) 301 | -10/Materials | Build established: Hacker-Mutant 401 | -10/Materials | Identified exit to Materials 401 | -10/Materials | Discovered exit to Materials (range 14) 627 | -10/Materials | Discovered exit to Mines (range 6) 892 | -10/Materials | Discovered exit to Materials (range 4) 1295 | -10/Materials | Discovered exit to Materials (range 9) 1391 | -10/Materials | Entered Mines 1713 | -10/Mines | Learned location of Storage (-7) 1768 | -10/Mines | Discovered exit to Materials (range 2) 1974 | -10/Mines | Learned location of Recycling (-7) 2076 | -10/Mines | Received a Rocket Launcher from a helpful Derelict 2237 | -10/Mines | Found a hidden stash of uninstalled traps 2334 | -10/Mines | Discovered exit to Materials (range 11) 2358 | -10/Mines | Entered Materials 2358 | -9/Materials | Evolved 2 slots: Propulsion x1, Utility x1 2727 | -9/Materials | Identified exit to Mines 2727 | -9/Materials | Discovered exit to Mines (range 9) 2822 | -9/Materials | Identified exit to Materials 2822 | -9/Materials | Discovered exit to Materials (range 8) 3240 | -9/Materials | Discovered exit to Mines (range 12) 3563 | -9/Materials | Discovered exit to Materials (range 6) 4150 | -9/Materials | Discovered exit to Materials (range 15) 5498 | -9/Materials | Entered Mines 5788 | -9/Mines | Deemed a non-threat by the Exiles lab entrance 5791 | -9/Mines | Identified exit to Exiles 5791 | -9/Mines | Discovered exit to Exiles (range 5) 5822 | -9/Mines | Discovered exit to Materials (range 6) 5841 | -9/Mines | Assisted by bots powering up and referring to "LRC-V3" 6079 | -9/Mines | Assembled infested the area 6084 | -9/Mines | Assisted by a Guerilla fighting off Assembled 6140 | -9/Mines | Lost 4 allies 6205 | -9/Mines | Crushed by falling debris 6433 | -9/Mines | Discovered exit to Materials (range 10) 6972 | -9/Mines | Learned location of 1 exit from Materials 7521 | -9/Mines | Entered Exiles 7591 | -9/Exiles | Met 8R-AWN 7629 | -9/Exiles | Met EX-HEX 7827 | -9/Exiles | Attacked by the Exiles 7841 | -9/Exiles | Core integrity fell below 50% 7871 | -9/Exiles | Core integrity fell below 20% 7885 | -9/Exiles | Destroyed by 8R-AWN with 8R-AWN's Boregun Last Messages --------------- 07866_ Acquired 7 matter. 07868_ Penetrated by HV Slug. 07868_ Critical hit (Destroy). 07868_ Hvy. Assault Rifle destroyed. 07868_ Penetrated by HV Slug. 07870_ HV Slug penetrates Machine. 07870_ Machine disabled. 07870_ HV Slug penetrates Machine. 07871_ System corrupted: Matter fused (-8). 07872_ Acquired 5 matter. 07872_ Imp. Treads destroyed. 07873_ Penetrated by HV Slug. 07875_ Acquired 5 matter. 07876_ Penetrated by HV Slug. 07876_ HV Slug penetrates Machine. 07876_ Penetrated by HV Slug. 07876_ HV Slug penetrates Machine. 07878_ Penetrated by HV Slug. 07885_ HV Slug penetrates Machine. 07885_ Penetrated by HV Slug. Map ----- +----------------------------------------------------+ | ?????????????????????????????????????????????????? | | ?????????????????????????????????????????????????? | | ?????????????????????????????????????????????????? | | ????????????????????" ??????????????????????????? | | ????????????????????" ?????????????????????????? | | ???????????????????"" ?????????????????????????? | | ??????????????????"" ????????????????????????? | | ??????????????????"" #???????????????????????? | | ??????????????????"" #????###########???????? | | ???????????????? " #####"""""""""##??????? | | ???????????????? " """ """"##?????? | | ??????????????? "" " #?????? | | ??????????????? " """#?????? | | ?????????????? " "#?????? | | ????? ???????? " "##????? | | ??? ??????? ""###??? | | ??? ??????????""""" """#??? | | ?? ???????????##""" "#??? | | ?? ???????????#####""" ##?? | | ? ??????????????##""" ##? | | ? "???????????????#"""" ## | | ? "?????????????##"" | | ##?#####??####"""" | | ##a%a#### | | !%! a g | | ! @ # | | " % ## | | % %% a " ##? | | % %% "" """ ""#?? | | "" ;# %##""" " " ""#" "##?? | | "#### ######""" """##"""""""##??? | | ? """"##??# #????###""""###########???? | | ? """#??## ####???######?????????????? | | ? ""##??#! "!#??????????????????????? | | ?? """##???#" =!#??????????????????????? | | ??" ??????#" "#??????????????????????? | | ???"" ???????#!!""!"#??????????????????????? | | ???? ?????????########??????????????????????? | | ????### ????????????????????????????????????????? | | ???????#?????????????????????????????????????????? | | ?????????????????????????????????????????????????? | | ?????????????????????????????????????????????????? | | ?????????????????????????????????????????????????? | | ?????????????????????????????????????????????????? | | ?????????????????????????????????????????????????? | | ?????????????????????????????????????????????????? | | ?????????????????????????????????????????????????? | | ?????????????????????????????????????????????????? | | ?????????????????????????????????????????????????? | | ?????????????????????????????????????????????????? | +----------------------------------------------------+ Best States ------------- Heat Dissipation 38 Energy Generation 14 Energy Capacity 280 Matter Stores 300 Matter Capacity 300 Sight Range 16 Robot Scan Range 14 Terrain Scan Range 14 Terrain Scan Density 10 ECM Strength 1 Additional Mass Support 6 Resistance: KI 35 Resistance: TH 35 Resistance: EX 35 Resistance: EM 35 Resistance: I 35 Resistance: S 35 Resistance: P 35 Core Shielding 20 Evasion (%) 40 Targeting Accuracy 10 Recoil Reduction 3 Offensive Hacking 20 Item Schematics ----------------- Imp. Ion Engine | -9/Materials | Scanalyzed Lgt. Treads | -9/Materials | Scanalyzed Imp. Treads | -9/Materials | Scanalyzed Robot Schematics ------------------ None Fabricated ------------ Nothing Repaired ---------- Nothing Alien Tech Used ----------------- None Achievements -------------- I Survived The Infestation Challenges ------------ None Game ------ Seed DisruptorBraceSlayer Manual? 0 Play Time 01:34:13 Cumulative 47.5 hours Start 2025.07.18 @ 11:24:26 End 2025.07.28 @ 21:12:31 Sessions 5 Manual Loads 0 Difficulty Explorer Special Mode None Game No. 21 Rogue 0 Adventurer 0 Explorer 21 Win Type - Total 0 Types 0/0/0/0/0/0/0/0/0/0 Lore% 15 Gallery% 20 Achievement% 19 Wizard Run 0 Options --------- Layout 0 ASCII 1 Keyboard 1 Movement Vi Keybinds 0 Fullscreen 2 Font 24/Smallcaps Map View 76x50 Zoom Use 0% Tactical HUD 1 Map Filters NONE Filters NONE Steam 0 RUN: 67a306f0-1e5e-48b0-bf82-9cc1c5469c23